Cogmind - Beta 16 @@@ ROGUE MODE // 2026.01.30 @ 12:49:24 Player: Assis Result: Self-destructed Performance ------------- Evolutions (1) 500 Regions Visited (2) 400 Robots Destroyed (27) 135 Value Destroyed (480) 480 Prototype IDs (0) 0 Alien Tech Used (0) 0 Bonus (0) 0 TOTAL SCORE: 1515 Bonus ------- None Cogmind --------- Core Integrity 205/400 Matter 300/300 Energy 250/250 System Corruption 0% Temperature Cool (0) Movement Treading (320) Ox2 Location -9/Materials Parts ------- > --- POWER (1) -------- Ion Engine > --- PROPULSION (2) --- Light Treads Light Treads > --- UTILITY (4) ------ Huge Storage Unit Structural Scanner Terrain Scan Processor > --- WEAPON (2) ------- EM Shotgun Mining Claw > --- INVENTORY (25) --- VTOL Module VTOL Module VTOL Module VTOL Module VTOL Module VTOL Module Weight Redist. System Signal Interpreter Seismic Detector Seismic Detector ECM Suite Light Armor Plating EM Shotgun EM Shotgun Mining Claw Mining Claw Peak State ------------ > --- POWER ------------ Ion Engine > --- PROPULSION ------- Light Treads Light Treads > --- UTILITY ---------- Huge Storage Unit Structural Scanner Improved Terrain Scanner Terrain Scan Processor > --- WEAPON ----------- EM Shotgun EM Shotgun > --- INVENTORY -------- VTOL Module VTOL Module VTOL Module VTOL Module VTOL Module VTOL Module Weight Redist. System Signal Interpreter Seismic Detector ECM Suite Light Armor Plating EM Shotgun Mining Claw Mining Claw Mining Claw [Rating: 16] Favorites ----------- Power Ion Engine Engine Ion Engine Propulsion Light Treads Treads Light Treads Utility Huge Storage Unit Device Structural Scanner Storage Huge Storage Unit Processor Terrain Scan Processor Weapon Light Assault Rifle Energy Gun EM Shotgun Ballistic Gun Light Assault Rifle Slashing Weapon Mining Claw Build | -11 -10 -9 ------- Run | Yrd Mat Mat Slots Evolved 2 | . . 2 Power . | . . . Propulsion . | . . . Utility 2 | . . 2 Weapon . | . . . Parts Attached 25 | 6 6 13 Power 3 | 1 1 1 Engine 3 | 1 1 1 Core . | . . . Reactor . | . . . Propulsion 4 | 2 . 2 Treads 4 | 2 . 2 Leg . | . . . Wheel . | . . . Hover . | . . . Flight . | . . . Utility 6 | 2 1 3 Device 3 | 1 . 2 Storage 2 | 1 1 . Processor 1 | . . 1 Hackware . | . . . Protection . | . . . Artifact . | . . . Weapon 12 | 1 4 7 Energy Gun 5 | . . 5 Energy Cannon . | . . . Ballistic Gun 4 | 1 3 . Ballistic Cannon . | . . . Launcher . | . . . Special Weapon . | . . . Impact Weapon . | . . . Slashing Weapon 3 | . 1 2 Piercing Weapon . | . . . Special Melee Weapon . | . . . Unidentified Prototypes . | . . . Parts Lost 8 | . 1 7 Power 1 | . . 1 Propulsion 2 | . . 2 Utility 2 | . 1 1 Weapon 3 | . . 3 Highest Loss Streak 5 | . 1 5 To Critical Strikes . | . . . Average Backups 10 | 1 8 15 Power . | . 1 . Propulsion 4 | . 2 6 Utility 3 | . 3 4 Weapon 2 | . 1 3 Tool/Special . | . . . Unused Backups 16 | . 1 15 Power . | . . . Propulsion 8 | . . 8 Utility 7 | . 1 6 Weapon 1 | . . 1 Tool/Special . | . . . Average Slot Usage (%) 87 | . 85 90 Engine 11 | . 14 9 Treads 24 | . 28 18 Device 11 | . 5 20 Storage 12 | . 14 11 Processor 4 | . . 10 Energy Gun 2 | . . 6 Ballistic Gun 13 | . 19 6 Slashing Weapon 5 | . 4 7 Peak Build Rating 16 | 6 8 16 Average Rating 9 | 4 6 13 On Entrance 4 | . 6 7 Avg Prop Armor Cover (%) . | . . . Naked Turns . | . . . Heaviest Build 93 | 13 88 93 Greatest Support 40 | 40 40 40 Greatest Overweight (x) 29 | . 2 29 Average Overweight (x) 1 | . . 2 Largest Inventory Capacity 25 | 8 25 25 Average Capacity 19 | 7 15 25 Most Carried 18 | 3 11 18 Average Carried 10 | 1 8 15 Final Capacity 25 | 8 25 25 Final Carried 16 | 2 11 16 Class Distribution -------------------- 68% | Mutant 18% | Scavenger-Assassin 5% | Assassin 5% | Skirmisher Dominant Class ---------------- Mutant | -10/Materials Scavenger-Assassin | -9/Materials Resources | -11 -10 -9 ----------- Run | Yrd Mat Mat Matter Collected 629 | 145 353 131 Remotely . | . . . Salvage Created 734 | 42 419 273 Parts 54 | 5 31 18 Haulers Intercepted . | . . . Recyclers Shooed 1 | . 1 . Parts Field Recycled . | . . . Retrieved Matter . | . . . Parts Self-Destructed . | . . . Prevented . | . . . Parts Restored . | . . . Kills | -11 -10 -9 ------- Run | Yrd Mat Mat Combat Hostiles Destroyed 19 | . 12 7 Guns 19 | . 12 7 Classes Destroyed 8 | 1 6 1 Worker 1 | . 1 . Builder 2 | . 2 . Tunneler 3 | 2 . 1 Recycler 1 | . 1 . Watcher 1 | . 1 . Swarmer 11 | . 8 3 Grunt 4 | . 4 . Sentry 4 | . . 4 Best Kill Streak 6 | 1 6 3 Combat Bots Only 5 | . 5 3 Max Kills in Single Turn 1 | 1 1 1 Gunslinging . | . . . Exploded . | . . . Melee . | . . . Uniques/NPCs Destroyed . | . . . Combat | -11 -10 -9 -------- Run | Yrd Mat Mat Hostile Shots Fired 164 | . 72 92 Missed 46 | . 19 27 Hits 118 | . 53 65 Projectile 118 | . 53 65 Critical Strikes 2 | . . 2 Damage Taken 1353 | . 503 850 Core 307 | . 112 195 Absorbed by Shields . | . . . Core Remaining (%) 77 | 100 55 . Volleys Fired 103 | 10 56 37 Largest 2 | 1 2 2 Hottest 85 | 20 40 85 Shots Fired 139 | 10 83 46 Gun 139 | 10 83 46 Cannon . | . . . Launcher . | . . . Special . | . . . Kinetic 104 | 10 83 11 Thermal 25 | . . 25 Explosive . | . . . Electromagnetic 10 | . . 10 Robot Hit Streak 29 | 2 8 29 Robot Miss Streak 3 | 3 3 2 Penetration Max . | . . . Secondary Targets 2 | . 2 . Max Gunslinging Chain 1 | . 1 . Shots Hit Robots 102 | 5 54 43 Core Hits 41 | 2 26 13 Critical Kills 1 | . 1 . Critical Parts Destroyed . | . . . Critical Strikes 3 | . 1 2 Burn 2 | . . 2 Destroy 1 | . 1 . Melee Attacks 23 | . 8 15 Impact . | . . . Slashing 23 | . 8 15 Piercing . | . . . Sneak Attacks . | . . . Combat Hostiles . | . . . Follow-up Attacks . | . . . Damage Inflicted 1145 | 71 534 540 Guns 1145 | 71 534 540 Cannons . | . . . Explosions . | . . . Melee . | . . . Ramming . | . . . Kinetic 693 | 71 534 88 Thermal 354 | . . 354 Explosive . | . . . Electromagnetic 98 | . . 98 Impact . | . . . Slashing . | . . . Piercing . | . . . Highest Corruption . | . . . Average Corruption . | . . . Corruption Purged . | . . . Corruption Blocked . | . . . Overload Shots . | . . . Overflow Damage . | . . . Projectiles . | . . . Explosions . | . . . Melee . | . . . Knockbacks . | . . . Impact . | . . . Kinetic . | . . . Secondary . | . . . Self-Inflicted Damage . | . . . Shots . | . . . Rammed . | . . . Targets Rammed . | . . . Kicked . | . . . Crushed . | . . . Highest Temperature 246 | . 22 246 Average Temperature 63 | . 9 77 Received Heat Transfer 381 | . 138 243 Siege Activations . | . . . Martial Activations . | . . . Shielding Activations . | . . . Robots Disrupted . | . . . Combat Hostiles . | . . . Robots Corrupted . | . . . Combat Hostiles . | . . . Parts Fried . | . . . Impact Corruptions . | . . . Robots Melted . | . . . Combat Hostiles . | . . . Parts Melted 3 | . . 3 Heat Transferred 999 | . . 999 Parts Sabotaged . | . . . Parts Stolen . | . . . Parts Stripped . | . . . Power Chain Reactions . | . . . Alert | -11 -10 -9 ------- Run | Yrd Mat Mat Maximum Alert Level . | . . . Low Security (%) 100 | 100 100 100 Level 1 . | . . . Level 2 . | . . . Level 3 . | . . . Level 4 . | . . . Level 5 . | . . . High Security . | . . . Max Security . | . . . Peak Influence 156 | 5 156 60 Initial . | . . . Average 33 | 1 56 5 Influence Increases 592 | 10 372 210 Destroy 0b10 Robot/C 380 | . 240 140 Destroy 0b10 Robot/NC 40 | 10 25 5 Destroy Leader 82 | . 32 50 Successful Hack 31 | . 25 6 Destroy Structure 14 | . 5 9 Lose Combat Pursuer 45 | . 45 . Influence Decreases 544 | 10 372 162 Time Decay 492 | 10 362 120 Lost Part 52 | . 10 42 Squads Dispatched 3 | . 1 2 Investigation 1 | . . 1 Extermination . | . . . Reinforcement 2 | . 1 1 Assault . | . . . Garrison . | . . . Intercept . | . . . Searches Triggered . | . . . Construction Impeded . | . . . Haulers Reinforced . | . . . Active Scanning Responses . | . . . Cargo Convoy Interrupts . | . . . Stealth | -11 -10 -9 --------- Run | Yrd Mat Mat Distress Signals 3 | . 2 1 Communications Jammed . | . . . Distress Signals . | . . . Times Spotted 34 | . 25 9 Peak Tracking Total 5 | . 5 3 Tactical Retreats 2 | . 2 . Traps | -11 -10 -9 ------- Run | Yrd Mat Mat Traps Triggered 1 | . 1 . Indirectly . | . . . Trap Hack Attempts . | . . . Triggered . | . . . Disarmed . | . . . Reprogrammed . | . . . Reused . | . . . Traps Extracted . | . . . Installed . | . . . Triggered . | . . . Machines | -11 -10 -9 ---------- Run | Yrd Mat Mat Machines Disabled . | . . . Max in Single Turn . | . . . Machines Repaired . | . . . Machines Dismantled . | . . . Machines Sabotaged . | . . . Overloaded Fab Kills . | . . . Hacking | -11 -10 -9 --------- Run | Yrd Mat Mat Machines Accessed 9 | . 6 3 Terminals 9 | . 6 3 Fabricators . | . . . Repair Stations . | . . . Recycling Units . | . . . Scanalyzers . | . . . Garrison Access . | . . . Total Hacks 24 | . 16 8 Successful 6 | . 5 1 Failed 17 | . 10 7 Catastrophic 3 | . 2 1 Database Lockouts 1 | . 1 . Manual 23 | . 15 8 Terminals 24 | . 16 8 Fabricators . | . . . Repair Stations . | . . . Recycling Units . | . . . Scanalyzers . | . . . Garrison Access . | . . . Terminal Hacks 6 | . 5 1 Part Schematic 1 | . 1 . Terminal Index 3 | . 2 1 Hauler Manifests 1 | . 1 . Registered Components 1 | . 1 . Fabricator Hacks . | . . . Repair Station Hacks . | . . . Recycling Unit Hacks . | . . . Scanalyzer . | . . . Garrison Access Hacks . | . . . Unauthorized Hacks . | . . . Terminals . | . . . Fabricators . | . . . Repair Stations . | . . . Recycling Units . | . . . Scanalyzers . | . . . Garrison Access . | . . . Data Cores Recovered . | . . . Used . | . . . Hacking Detections 8 | . 5 3 Full Trace Events 2 | . 1 1 Feedback Events . | . . . Feedback Blocked . | . . . Robot Schematics Acquired . | . . . Robots Built . | . . . Authchips . | . . . Time . | . . . Total Robot Build Rating . | . . . Part Schematics Acquired 1 | . 1 . Parts Built . | . . . Authchips . | . . . Time . | . . . Total Part Build Rating . | . . . Part Studies Acquired . | . . . Parts Repaired . | . . . Time . | . . . Parts Recycled . | . . . Recycled Matter . | . . . Retrieved Matter . | . . . Retrieved Components . | . . . Parts Scanalyzed . | . . . Part Schematics Acquired . | . . . Parts Damaged . | . . . Bothacking | -11 -10 -9 ------------ Run | Yrd Mat Mat Used RIF Installer . | . . . Robots Hacked . | . . . Non-combat . | . . . Combat . | . . . Robot Hacks Applied . | . . . Relay Couplers Released . | . . . Fabnet Peak Effective % . | . . . Robots Rewired . | . . . Allies Hacked . | . . . Hacks Repelled . | . . . Allies | -11 -10 -9 -------- Run | Yrd Mat Mat Total Allies . | . . . Largest Group . | . . . Highest-Rated Group . | . . . Highest-Rated Ally . | . . . Total Orders . | . . . Ally Attacks . | . . . Total Damage . | . . . Kills . | . . . Allies Corrupted . | . . . Allies Melted . | . . . Intel | -11 -10 -9 ------- Run | Yrd Mat Mat Active Infowar (turns) 2019 | 18 728 1273 Terrain 1222 | . . 1222 Structural 1273 | . . 1273 Seismic 746 | 18 728 . Robot Analysis Total . | . . . Derelict Logs Recovered . | . . . Drone Launches . | . . . Drone Recoveries . | . . . Exploration | -11 -10 -9 ------------- Run | Yrd Mat Mat Turns Passed 3348 | 135 1871 1342 Spaces Moved 1135 | 71 744 320 Core 18 | 8 . 10 Treads 1117 | 63 744 310 Legs . | . . . Wheels . | . . . Hover . | . . . Flight . | . . . Fastest Speed 50 | 50 160 320 Average Speed 252 | 147 215 361 Slowest Speed 1500 | 160 320 1500 Overloaded Moves . | . . . Propulsion Burnouts . | . . . Robots Hopped . | . . . Potential Cave-ins . | . . . Cave-ins Triggered . | . . . Exploration Rate (%) 34 | 6 72 25 Regions Visited 2 Branch Regions . Pre-discovered Areas . | . . . Known Exits Taken . | . . . Unknown Exits Taken 2 | 1 1 . Scrap Searched . | . . . Spaces Dug 15 | . 5 10 Terrain Destroyed 15 | . 5 10 Melee 15 | . 5 10 Projectile . | . . . AOE . | . . . Terrain Rammed . | . . . Walls Destroyed . | . . . Machines Disabled . | . . . Actions | -11 -10 -9 --------- Run | Yrd Mat Mat Total 1444 | 89 927 428 Wait 119 | . 93 26 Move 1133 | 70 743 320 Hop . | . . . Pick Up 28 | 3 12 13 Fast Attach 9 | 5 2 2 Attach 9 | 1 1 7 Detach 2 | . 2 . Swap 9 | . 3 6 Drop 9 | . 7 2 Fire 103 | 10 56 37 Melee 23 | . 8 15 Ram . | . . . Kick . | . . . Crush . | . . . Escape Stasis . | . . . Rewire . | . . . Trap . | . . . Miscellaneous . | . . . Route ------- -11/Scrapyard -10/Materials (discovered 5 exits: *Mat x3 / [*Min] / [*Sub]) -9/Materials (discovered 1 exit: [*Mat]) History --------- Turn | Location | Event 2 | -11/Scrapyard | Met Revision 17 12 | -11/Scrapyard | Discovered new exit (range 16) 136 | -11/Scrapyard | Entered Materials 223 | -10/Materials | Discovered new exit (range 9) 253 | -10/Materials | Discovered new exit (range 11) 310 | -10/Materials | Build established: Mutant 653 | -10/Materials | Discovered new exit (range 12) 706 | -10/Materials | Discovered new exit (range 16) 991 | -10/Materials | Discovered new exit (range 16) 1809 | -10/Materials | Central database locked down 2007 | -10/Materials | Entered another Materials area 2007 | -9/Materials | Evolved 2 slots: Utility x2 2346 | -9/Materials | Build established: Scavenger-Assassin 2793 | -9/Materials | Lost 5 parts (1p1n3w) 3129 | -9/Materials | Discovered new exit (range 9) 3349 | -9/Materials | Self-destructed Last Messages --------------- 02993_ Acquired 30 matter. 03019_ Acquired Seismic Detector. 03104_ U-05 Engineer builds a Wall. 03105_ R-06 Scavenger collects Particle Gun. 03113_ K-01 Serf cleans the Nuclear Reactor. 03121_ U-05 Engineer builds a Wall. 03121_ K-01 Serf cleans the Nuclear Reactor. 03125_ K-01 Serf collects debris. 03129_ EXIT=FOUND 03289_ S-10 Pest destroyed. 03299_ Imp. Terrain Scanner destroyed. 03301_ Destroyed Flight Unit. 03301_ S-10 Pest destroyed. 03307_ Acquired 5 matter. 03334_ ALERT: Hostiles spotted, dispatching reinforcements to Terminal M008. 03349_ W-16 Scout sends out distress signal. 03349_ Connecting with Terminal... 03349_ ALERT: Suspicious activity at Terminal M010. Dispatching Investigation squad. Map ----- +----------------------------------------------------+ | #######?#####################################?#### | | ################################################ | | ################################################ | | ######### ############################?#?### | | ## ################################## | | ## < ############# = ############ | | ## ###### # ############ | | ######### ###### # ###### ### | | ###########+####### [ # ! + "!###[ | | #?#?## ### %# ###### #%# ! | | ???### ### # [ ! ####### ###### | | ###?## ### # ! ####### ###### | | ###### ######+### % ####### ###### | | #?#?## """ """ ####[ ##+############ #### | | ###?## """ """ #### % #### | | ?#?### """ """ + ###? | | #?################### ##?# | | ??################### ############### #### | | ####??####### ######*########################## | | ??##########? #####%#########################? | | ?##?##?#### #####%#################?######## | | ?? ??##? ####==*###############?#??##?### | | ?# ?? ??? ? """=[ + ###??##??#### | | ?? ?? ?? "T" ### ###?##?#???## | | ??????? ?? ""# # ???? ????## | | ?????? ???####+##w @T"# ? # ??????? ??? | | ???? ??????? # ""# ? ?? # ??????????? | | ??????????? # ### ? ??? # ??????????? | | ??????????? ? # r### ??? ?? # ??????????? | | ?????????????? # a ##? ? ? ??????????????? | | ??????????????? ## ## ##?? ??????????????????? | | ??????????????####+## ##?????????????????????? | | ???????????????? # ? ???????????????????? | | ??????????????????? # ??????????????????????? | | ??????????????????? + """??????????????????????? | | ??????????????????? # """??????????????????????? | | ??????????????????? # """??????????????????????? | | ??????????????????? # ?????????????????????????? | | ???????????????????## ?????????????????????????? | | ??????????????????? ??????????????????????????? | | ?????????????????????????????????????????????????? | | ?????????????????????????????????????????????????? | | ?????????????????????????????????????????????????? | | ?????????????????????????????????????????????????? | | ?????????????????????????????????????????????????? | | ?????????????????????????????????????????????????? | | ?????????????????????????????????????????????????? | | ?????????????????????????????????????????????????? | | ?????????????????????????????????????????????????? | | ?????????????????????????????????????????????????? | +----------------------------------------------------+ Best States ------------- Heat Dissipation 28 Energy Generation 10 Energy Capacity 250 Matter Stores 300 Matter Capacity 300 Sight Range 16 Terrain Scan Range 16 Terrain Scan Density 85 Evasion (%) 40 Recoil Reduction 2 Item Schematics ----------------- Sensor Array | -10/Materials | Hacked Robot Schematics ------------------ None Fabricated ------------ Nothing Repaired ---------- Nothing Studied --------- None Alien Tech Used ----------------- None Achievements -------------- You Again Challenges ------------ None Game ------ Seed ScrapoidRecoilMesh Manual? 0 Play Time 00:17:39 Cumulative 32.0 hours Start 2026.01.30 @ 12:32:51 End 2026.01.30 @ 12:49:24 Sessions 1 Manual Loads 0 Difficulty Rogue Special Mode None Game No. 69 Rogue 69 Adventurer 0 Explorer 0 Win Type - Total 0 Types 0/0/0/0/0/0/0/0/0/0 Lore% 16 Gallery% 23 Achievement% 19 Wizard Run 0 Options --------- Layout 0 ASCII 0 Keyboard 1 Movement Arrows Keybinds 0 Fullscreen 1 Font 18/Smallcaps Map View 38x25 Zoom Use 98% Tactical HUD 1 Map Filters NONE Filters NONE Steam 1 RUN: 43ff62f0-44a2-4308-b551-8b52783e2cd9